bitfinex/quotes_ETHUSD_20251120
["timestamp","ask_amount","ask_price","bid_price","bid_amount"]
[1763619699870,4.60855127,3033.2,3032.8,0.4684]
[1763619700077,0.3065291,3033.1,3032.8,0.4684]
[1763619700558,0.1945,3033.2,3033.0,0.4818]
[1763619700760,0.1945,3033.2,3033.1,1.1447]
[1763619700964,2.79925214,3033.7,3033.1,1.1447]
[1763619701163,0.99027712,3033.5,3033.1,0.1945]
[1763619701363,0.90699264,3033.3,3033.2,0.4684]
[1763619701657,1.21298852,3033.3,3033.2,0.9502]
[1763619702450,1.21298852,3033.3,3033.2,0.1818]
[1763619703032,4.50972804,3033.3,3033.2,0.1818]
[1763619703234,12.37009554,3033.3,3032.8,0.4684]
[1763619703455,2.79925214,3033.0,3032.8,0.4684]
[1763619703783,1.21288501,3032.9,3032.5,0.00172529]
[1763619704067,3.70624478,3032.6,3032.5,0.47012529]
[1763619704436,3.70624478,3032.6,3032.5,0.95192529]
[1763619705282,7.00374527,3032.6,3032.5,0.95192529]
[1763619705944,7.00374527,3032.6,3032.5,0.95292529]
[1763619706408,7.9535914,3032.6,3032.5,0.00272529]
[1763619706561,8.70064749,3032.6,3032.5,0.00272529]
[1763619706760,8.25894749,3032.6,3032.5,0.00272529]
[1763619707097,8.25894749,3032.6,3032.5,0.48452529]
[1763619708355,8.25894749,3032.6,3032.5,0.00272529]
[1763619708565,8.36624749,3032.6,3032.5,0.00272529]
[1763619709067,8.25894749,3032.6,3032.5,0.00272529]
[1763619709268,8.25894749,3032.6,3032.5,0.48452529]
[1763619709676,8.36624749,3032.6,3032.5,0.00272529]
[1763619710283,5.45969535,3032.6,3032.5,0.48452529]
[1763619710507,4.67289313,3032.6,3032.5,0.95292529]
[1763619712509,4.20449313,3032.6,3032.5,0.95292529]
[1763619713005,3.29750049,3032.6,3032.5,0.95292529]
[1763619713187,4.20449313,3032.6,3032.5,0.95292529]
[1763619713713,4.20449313,3032.6,3032.5,0.00272529]
[1763619713714,4.64619313,3032.6,3032.5,0.00272529]
[1763619713873,0.1073,3032.2,3031.5,0.4684]
[1763619714082,0.1073,3032.2,3031.0,0.1945]
[1763619714083,0.90699264,3031.5,3031.0,0.1945]
[1763619714614,0.90699264,3031.5,3031.4,0.4818]
[1763619714615,1.10149264,3031.5,3031.4,0.4818]
[1763619715000,1.10149264,3031.5,3031.4,0.9502]
[1763619715317,2.99375214,3031.5,3031.4,0.4818]
[1763619715484,2.99375214,3031.5,3031.4,0.9502]
[1763619716285,6.29244915,3031.5,3031.4,0.9502]
[1763619716497,4.40018965,3031.5,3031.4,0.9502]
[1763619716698,4.40018965,3031.5,3031.4,0.4818]
[1763619716899,0.90699264,3031.4,3031.0,0.3055]
[1763619717218,0.90699264,3031.4,3030.0,0.1945]
[1763619717219,2.00675101,3031.4,3030.5,0.1945]
[1763619717520,2.00675101,3031.4,3030.6,0.4684]
[1763619717521,0.3049157,3031.3,3030.6,0.4684]
[1763619717912,0.90699264,3031.4,3031.2,0.6763]
[1763619718217,0.90699264,3031.4,3031.3,0.4818]
[1763619718423,4.51075838,3031.4,3031.3,0.9502]
[1763619719024,4.20579847,3031.4,3031.3,0.78768]
[1763619719321,0.111,3032.8,3031.3,0.78768]
[1763619719322,3.29826181,3031.9,3031.3,0.78768]
[1763619719522,9.89478543,3031.9,3031.4,0.9502]
[1763619719722,9.89478543,3031.9,3031.2,0.1945]
[1763619719723,0.90699264,3031.6,3031.2,0.6629]
[1763619720222,0.90699264,3031.6,3031.5,0.4818]
[1763619720415,4.20558084,3031.6,3031.5,0.4818]
[1763619720585,4.20558084,3031.6,3031.5,0.9502]
[1763619720787,4.20558084,3031.6,3031.2,0.1945]
[1763619720788,10.80275724,3031.6,3031.2,0.1945]
[1763619721107,1.38559978,3031.5,3030.9,0.4684]
[1763619721426,1.38559978,3031.5,3030.7,0.111]
[1763619721427,0.30530104,3031.4,3030.8,0.4684]
[1763619721625,0.30530104,3031.4,3030.5,0.6629]
[1763619721811,0.90699264,3031.1,3030.5,0.6629]
[1763619722011,0.90699264,3031.1,3030.5,0.1945]
[1763619722211,0.90699264,3031.1,3030.6,0.4684]
[1763619722401,0.90699264,3030.9,3030.6,0.4684]
[1763619722727,0.90699264,3030.9,3030.8,0.4818]
[1763619723022,0.90699264,3030.9,3030.8,0.9502]
[1763619724224,3.29924117,3031.0,3030.8,0.9502]
[1763619724414,6.59817351,3031.2,3030.9,0.9502]
[1763619724723,0.90699264,3031.3,3031.2,0.6763]
[1763619724724,3.29895707,3031.3,3031.2,0.6763]
[1763619724889,3.29895707,3031.3,3031.2,1.1447]
[1763619726529,3.2985882,3031.6,3031.2,1.2557]
[1763619726693,3.29778685,3032.4,3032.0,0.4818]
[1763619726894,3.29778685,3032.4,3032.3,0.5763]
[1763619727130,3.6036864,3032.4,3032.3,1.0447]
[1763619727428,4.51067904,3032.4,3032.3,1.0447]
[1763619727627,3.6036864,3032.4,3032.3,1.0447]
[1763619727930,4.51067904,3032.4,3032.3,1.0447]
[1763619728100,3.6036864,3032.4,3032.3,1.0447]
[1763619728432,4.51067904,3032.4,3032.3,1.0447]
[1763619730628,0.30589955,3032.4,3032.3,1.0447]
[1763619730841,3.29764801,3032.5,3032.3,1.0447]
[1763619730999,3.29764801,3032.5,3032.4,0.975]
[1763619731212,3.60443059,3032.5,3032.4,0.975]
[1763619732556,3.60439181,3032.5,3032.4,0.975]
[1763619732712,3.29760923,3032.5,3032.4,1.68372169]
[1763619733212,4.20460187,3032.5,3032.4,0.975]
[1763619733414,4.51159166,3032.5,3032.4,0.975]
[1763619734313,4.51159166,3032.5,3032.2,0.111]
[1763619734314,0.90699264,3032.4,3032.2,0.111]
[1763619734640,4.20481937,3032.3,3032.2,0.111]
[1763619735023,4.20481937,3032.3,3032.2,0.6049]
[1763619735222,3.29782673,3032.3,3032.2,1.086]
[1763619735407,3.29782673,3032.3,3032.2,1.79479173]
[1763619735615,3.29782673,3032.3,3032.2,1.9930909]
[1763619736229,4.20475961,3032.4,3032.2,1.9930909]
[1763619736431,4.20475961,3032.4,3032.3,0.975]
[1763619736943,4.20475961,3032.4,3032.3,0.4939]
[1763619737264,4.51184208,3032.4,3032.3,0.4939]
[1763619737468,8.59055609,3032.4,3032.2,0.111]
[1763619737652,0.30708247,3032.3,3032.2,0.111]
[1763619738163,0.30708247,3032.3,3032.2,0.6049]
[1763619738631,3.6049092,3032.3,3032.2,0.6049]
[1763619741142,3.6049092,3032.3,3032.2,1.086]
[1763619742050,4.51190184,3032.3,3032.2,1.086]
[1763619742405,4.20481937,3032.3,3032.2,1.086]
[1763619743874,3.29698951,3033.1,3032.2,1.086]
[1763619744167,0.002,3032.4,3032.3,0.975]
[1763619751669,0.002,3032.4,3032.3,1.6843647]
[1763619752486,0.002,3032.4,3032.3,1.68486196]
[1763619753104,0.90899264,3032.4,3032.3,0.975]
[1763619753280,1.14509264,3032.4,3032.2,0.111]
[1763619753486,1.89551375,3032.4,3032.2,0.111]
[1763619754511,4.20481937,3032.3,3032.2,0.111]
[1763619755011,4.20481937,3032.3,3032.2,0.5866]
[1763619755308,4.51288647,3032.3,3032.2,1.29804914]
[1763619755511,4.20481937,3032.3,3032.2,1.78994914]
[1763619756308,4.51316171,3032.3,3032.2,1.78994914]
[1763619756699,4.51316171,3032.3,3032.2,0.82244914]
[1763619757007,4.51316171,3032.3,3032.2,1.29804914]
[1763619757518,4.51316171,3032.3,3032.2,5.57994914]
[1763619758576,4.51316171,3032.3,3032.2,5.08804914]
[1763619759610,4.98706171,3032.3,3032.2,4.61244914]
[1763619760705,5.81574001,3032.3,3032.2,4.61244914]
[1763619761345,4.98706171,3032.3,3032.2,4.61244914]
[1763619762512,4.98706171,3032.3,3032.2,5.09164914]
[1763619762513,4.51316171,3032.3,3032.2,5.09164914]
[1763619762714,4.51319325,3032.3,3032.2,5.09164914]
[1763619763025,4.51519325,3032.3,3032.2,5.09164914]
[1763619763235,4.51519325,3032.3,3032.1,0.1857]
[1763619763236,0.90699264,3032.2,3032.1,0.001]
[1763619763557,1.94519216,3032.2,3032.1,0.001]
[1763619763931,2.05619216,3032.2,3032.1,0.001]
[1763619764662,2.46169616,3032.2,3032.1,0.001]
[1763619764858,7.59277321,3032.2,3032.1,0.001]
[1763619765637,7.59228772,3032.2,3032.1,0.001]
[1763619767339,7.48128772,3032.2,3032.1,0.001]
[1763619767538,7.59228772,3032.2,3032.1,0.001]
[1763619767940,7.07578372,3032.2,3032.1,0.001]
[1763619768616,6.81978372,3032.2,3032.1,0.001]
[1763619768819,7.07558372,3032.2,3032.1,0.001]
[1763619769651,7.07513767,3032.2,3032.1,0.001]
[1763619770522,7.18613767,3032.2,3032.1,0.001]
[1763619770721,7.59164167,3032.2,3032.1,0.001]
[1763619775057,0.405504,3032.1,3031.8,0.001]
[1763619775243,4.91407082,3031.9,3031.8,0.001]
[1763619775453,5.4546388,3031.9,3031.8,0.001]
[1763619775622,5.9487388,3031.9,3031.8,0.001]
[1763619776271,9.24700061,3031.9,3031.8,0.001]
[1763619776446,10.58513054,3031.9,3031.8,0.001]
[1763619780577,9.85783054,3031.9,3031.8,0.4802]
[1763619780774,10.09103054,3031.9,3031.8,0.001]
[1763619781648,10.58513054,3031.9,3031.8,0.001]
[1763619781871,10.09103054,3031.9,3031.8,0.001]
[1763619782571,10.58513054,3031.9,3031.8,0.001]
[1763619782753,5.85075236,3031.9,3031.8,0.945]
[1763619782947,4.51262243,3031.9,3031.8,0.945]
[1763619783274,4.74582243,3031.9,3031.8,0.001]
[1763619783451,4.51262243,3031.9,3031.8,0.4802]
[1763619783779,4.51262243,3031.9,3031.8,0.945]
[1763619786374,4.51262243,3031.9,3031.8,0.4802]
[1763619786887,4.51262243,3031.9,3031.8,0.945]
[1763619788095,3.60562979,3031.9,3031.8,0.945]
[1763619788262,4.51262243,3031.9,3031.8,0.4802]
[1763619788461,4.51262243,3031.9,3031.8,0.9676]
[1763619789291,5.5353002,3031.9,3031.8,0.001]
[1763619789660,6.0210002,3031.9,3031.8,0.001]
[1763619790499,6.4265042,3031.9,3031.8,0.001]
[1763619790662,10.54458238,3031.9,3031.8,0.001]
[1763619793788,10.54458238,3031.9,3030.5,0.4874]
[1763619793789,1.31249664,3031.8,3030.5,0.4874]
[1763619794112,0.90699264,3031.0,3030.5,0.4874]
[1763619794418,0.30801343,3030.9,3030.5,0.4874]
[1763619794911,4.51435609,3030.9,3030.8,0.4805]
[1763619795384,4.51435609,3030.9,3030.8,0.9679]
[1763619797824,3.60736345,3030.9,3030.8,0.9679]
[1763619798222,4.51435609,3030.9,3030.8,0.9679]
[1763619798386,4.51435609,3030.9,3030.0,1.07560159]
[1763619798387,15.03956212,3030.9,3030.1,0.4874]
[1763619798727,0.90699264,3030.7,3030.1,0.4874]
[1763619798908,2.80580563,3030.3,3030.1,0.4874]
[1763619799099,3.3001122,3030.2,3030.1,0.4874]
[1763619799502,3.3001122,3030.2,3030.1,0.9679]
[1763619800985,0.90699264,3030.4,3030.1,0.9679]
[1763619801181,0.30761299,3030.3,3030.2,0.4874]
[1763619801788,0.30761299,3030.3,3030.2,0.9679]
[1763619802886,0.30761299,3030.3,3030.0,0.1955]
[1763619803090,3.3001122,3030.2,3030.1,0.4874]
[1763619803285,4.51471783,3030.2,3030.1,0.4874]
[1763619803502,4.51471783,3030.2,3030.1,0.9679]
[1763619809205,4.51471783,3030.2,3030.1,0.4805]
[1763619810126,4.51471783,3030.2,3030.1,0.9477]
[1763619811221,0.90699264,3030.1,3030.0,0.001]
[1763619811421,1.21382821,3030.1,3030.0,0.001]
[1763619811722,2.57810598,3030.1,3030.0,0.001]
[1763619812297,2.57800811,3030.1,3030.0,0.001]
[1763619813300,5.87822922,3030.1,3030.0,0.001]
[1763619813705,6.86963538,3030.1,3030.0,0.001]
[1763619815139,10.4097906,3030.1,3030.0,0.001]
[1763619815723,10.8815906,3030.1,3030.0,0.001]
[1763619816435,10.4097906,3030.1,3030.0,0.001]
[1763619818725,6.28643538,3030.1,3030.0,0.4996]
[1763619819120,10.4264906,3030.1,3030.0,0.001]
[1763619819323,11.3982946,3030.1,3030.0,0.001]
[1763619820799,10.1936536,3030.1,3030.0,0.001]
[1763619821222,10.0826536,3030.1,3030.0,0.001]
[1763619821442,10.1936536,3030.1,3030.0,0.001]
[1763619821641,9.0937496,3030.1,3030.0,0.001]
[1763619821830,8.31267183,3030.1,3030.0,0.4996]
[1763619822151,3.60695881,3030.1,3030.0,0.9826]
[1763619822320,4.51395145,3030.1,3030.0,0.9826]
[1763619822519,3.60695881,3030.1,3030.0,1.47096]
[1763619822715,3.60710884,3030.1,3030.0,1.47096]
[1763619822930,3.60710884,3030.1,3029.1,0.88110159]
[1763619822931,14.42187417,3030.1,3029.1,0.88110159]
[1763619823130,1.66808037,3030.0,3029.2,0.483]
[1763619823316,0.90699264,3029.7,3029.2,0.483]
[1763619823522,0.30688773,3029.6,3029.2,0.483]
[1763619823721,0.30688773,3029.6,3029.3,0.112]
[1763619823923,0.30688773,3029.6,3029.5,0.4986]
[1763619824323,0.30688773,3029.6,3029.5,0.9816]
[1763619825350,3.6076535,3029.6,3029.5,0.9816]
[1763619825554,4.51464614,3029.6,3029.5,0.9816]
[1763619827256,4.20775841,3029.6,3029.5,0.9816]
[1763619827436,0.90699264,3029.6,3029.5,0.9816]
[1763619827632,4.20775841,3029.6,3029.5,0.9816]
[1763619828235,4.20775841,3029.6,3029.5,0.4986]
[1763619828236,4.51472178,3029.6,3029.5,0.4986]
[1763619828754,4.51472178,3029.6,3029.5,0.9816]
[1763619829133,4.51472178,3029.6,3029.5,0.4986]
[1763619832744,8.70632568,3029.6,3029.3,0.112]
[1763619832940,0.30696337,3029.5,3029.3,0.112]
[1763619833436,0.30696337,3029.5,3029.4,0.4986]
[1763619833865,3.6078381,3029.5,3029.4,0.4986]
[1763619834561,3.6078381,3029.5,3029.4,0.9816]
[1763619836036,3.60822045,3029.5,3029.4,0.9816]
[1763619836637,0.30734572,3029.5,3029.4,4.7716]
[1763619836877,3.75838551,3030.5,3029.4,5.25996]
[1763619837169,1.214409,3030.4,3029.5,0.483]
[1763619837362,0.30741636,3030.3,3029.5,0.483]
[1763619837565,0.30741636,3030.2,3029.5,0.483]
[1763619837779,0.30745897,3030.1,3029.5,0.483]
[1763619837938,0.90699264,3029.8,3029.5,0.483]
[1763619838142,0.30745897,3029.7,3029.5,0.483]
[1763619838541,0.30745897,3029.7,3029.6,0.4986]
[1763619838961,0.30745897,3029.7,3029.6,0.9816]
[1763619839989,3.6081158,3029.7,3029.4,3.79]
[1763619840140,4.20764947,3029.7,3029.6,0.4986]
[1763619840345,4.5152511,3029.7,3029.6,0.4986]
[1763619841168,4.5152511,3029.7,3029.4,3.79]
[1763619841169,0.90699264,3029.6,3029.4,3.79]
[1763619841374,0.30760163,3029.5,3029.4,3.79]
[1763619841752,0.30760163,3029.5,3029.4,4.2886]
[1763619842346,4.515469,3029.5,3029.4,4.2886]
[1763619845845,4.51553052,3029.5,3029.4,4.2886]
[1763619846046,4.51553052,3029.5,3029.4,4.7716]
[1763619850179,4.51553052,3029.5,3029.4,4.2886]
[1763619850349,4.51553052,3029.5,3029.4,4.7565]
[1763619852968,4.51553052,3029.5,3029.4,5.24345]
[1763619853479,4.20764947,3029.7,3029.4,5.24345]
[1763619853687,0.30783069,3029.6,3029.4,4.27695]
[1763619853988,0.30783069,3029.6,3029.5,0.4679]
[1763619854187,0.30783069,3029.6,3029.5,1.427785]
[1763619854986,0.30783069,3029.6,3029.5,0.959885]
[1763619855152,0.90699264,3029.5,3029.3,0.001]
[1763619855347,4.51580702,3029.4,3029.3,0.001]
[1763619855903,4.51580702,3029.4,3029.3,0.4751]
[1763619856104,4.51580702,3029.4,3029.3,0.943]
[1763619856391,4.51575216,3029.4,3029.3,0.943]
[1763619858086,3.60875952,3029.4,3029.3,0.943]
[1763619858293,0.90699264,3029.6,3029.3,0.943]
[1763619858453,0.90699264,3029.6,3029.5,0.4741]
[1763619858790,0.90699264,3029.6,3029.5,0.5861]
[1763619858791,4.51554114,3029.6,3029.5,0.5861]
[1763619858954,4.51554114,3029.6,3029.5,1.054]
[1763619861291,3.6085485,3029.6,3029.5,1.054]
[1763619868311,3.30076577,3029.6,3029.5,1.054]
[1763619868516,3.60820442,3029.6,3029.5,1.054]
[1763619868698,4.08590442,3029.6,3029.5,0.112]
[1763619869005,4.08589502,3029.6,3029.5,0.112]
[1763619869700,3.60819502,3029.6,3029.5,0.112]
[1763619869880,4.08209502,3029.6,3029.5,0.112]
[1763619870709,3.60819502,3029.6,3029.5,0.5815]
[1763619870913,3.60819502,3029.6,3029.5,1.0323]
[1763619873682,3.60807549,3029.6,3029.5,0.5815]
[1763619874510,3.60807549,3029.6,3029.5,0.112]
[1763619874511,5.77014326,3029.6,3029.5,0.112]
[1763619876579,5.77014326,3029.6,3029.5,0.113]
[1763619878716,5.76999735,3029.6,3029.5,0.113]
[1763619880784,8.57734418,3029.6,3029.5,0.113]
[1763619882697,8.57734418,3029.6,3029.5,0.001]
[1763619882935,0.405504,3029.4,3029.3,0.001]
[1763619883096,2.80860015,3028.4,3027.7,4.68141378]
[1763619883298,2.80860015,3028.4,3027.8,0.5642]
[1763619883299,0.30716381,3028.3,3027.8,0.5642]
[1763619883503,0.90699264,3028.2,3027.9,0.4532]
[1763619883704,0.90699264,3028.6,3028.2,0.6683]
[1763619884008,0.30644466,3028.5,3028.3,0.111]
[1763619884220,0.90699264,3028.5,3028.3,0.111]
[1763619884422,0.30644466,3028.4,3028.3,0.111]
[1763619884799,3.60834003,3028.4,3028.3,0.5888]
[1763619885002,0.30626633,3028.4,3028.3,0.5888]
[1763619885301,7.50983186,3029.0,3028.3,1.042]
[1763619885498,0.30626633,3028.9,3028.4,0.4532]
[1763619886331,0.90699264,3028.8,3028.4,0.4532]
[1763619886739,4.20863025,3028.8,3028.7,0.4778]
[1763619887710,4.20863025,3028.8,3028.7,0.931]
[1763619889341,4.20863025,3028.8,3028.3,0.5642]
[1763619889546,7.51026786,3028.8,3028.3,0.5642]
[1763619890211,4.20863025,3028.8,3028.7,0.4778]
[1763619890914,10.31886801,3028.8,3028.3,0.5642]
[1763619891543,7.51026786,3028.8,3028.3,0.5642]
[1763619892147,0.4766,3029.8,3028.7,0.4778]
[1763619892356,0.90699264,3029.3,3028.9,0.4778]
[1763619892540,0.30611998,3029.2,3028.9,0.4778]
[1763619892740,0.30611998,3029.2,3028.8,0.112]
[1763619892741,6.60196995,3029.4,3029.1,0.4778]
[1763619892916,6.60196995,3029.4,3029.2,0.112]
[1763619893317,0.0726,3029.3,3029.2,0.112]
[1763619893551,3.78819279,3029.3,3029.2,0.112]
[1763619893849,4.09434919,3029.3,3029.2,0.112]
[1763619895052,6.60262124,3029.1,3028.4,0.79048002]
[1763619895254,3.30131062,3029.1,3028.8,0.001]
[1763619895452,3.30131062,3029.1,3029.0,0.4778]
[1763619895453,4.20830326,3029.1,3029.0,0.4778]
[1763619895620,4.20830326,3029.1,3029.0,0.5888]
[1763619895821,4.20830326,3029.1,3029.0,1.042]
[1763619896467,0.90699264,3029.1,3029.0,1.042]
[1763619897270,4.20830326,3029.1,3029.0,1.042]
[1763619898752,0.90699264,3029.1,3029.0,1.042]
[1763619899065,4.20830326,3029.1,3029.0,1.042]
[1763619899248,4.20830326,3029.1,3029.0,0.5888]
[1763619899564,7.39588448,3029.1,3029.0,0.111]
[1763619899741,7.86848448,3029.1,3029.0,0.111]
[1763619900161,5.05988433,3029.1,3029.0,0.111]
[1763619900334,11.1697951,3029.1,3028.8,0.001]
[1763619900529,3.88819279,3028.9,3028.8,0.001]
[1763619900751,5.27429337,3028.9,3028.8,0.001]
[1763619901271,5.75089337,3028.9,3028.8,0.001]
[1763619901559,9.05242197,3028.9,3028.8,0.001]
[1763619902862,4.51490231,3028.9,3028.8,0.932]
[1763619903174,0.30638107,3028.9,3028.8,0.932]
[1763619903468,0.90699264,3029.0,3028.8,0.932]
[1763619903676,0.90699264,3029.0,3028.9,0.931]
[1763619903972,1.21363522,3029.0,3028.9,0.931]
[1763619904270,1.21363522,3029.0,3028.9,0.4778]
[1763619905070,1.21363522,3029.0,3028.9,0.931]
[1763619905447,4.51505483,3029.0,3028.9,0.4778]
[1763619905767,12.23287402,3029.0,3028.8,0.001]
[1763619905968,4.90914211,3028.9,3028.8,0.001]
[1763619907236,1.69503796,3028.9,3028.8,0.001]
[1763619907437,4.51996656,3028.9,3028.8,0.001]
[1763619907677,4.99656656,3028.9,3028.8,0.001]
[1763619907876,6.10722519,3028.9,3028.8,0.001]
[1763619908259,11.72442549,3028.9,3028.8,0.001]
[1763619908436,12.12992949,3028.9,3028.8,0.001]
[1763619911267,8.84002934,3028.9,3028.8,0.001]
[1763619911472,0.30674532,3028.9,3028.8,0.9333]
[1763619911675,0.30674532,3028.9,3028.8,0.466]
[1763619911880,4.51526656,3028.9,3028.8,0.466]
[1763619912567,4.51526656,3028.9,3028.8,0.9333]
[1763619913168,4.51526656,3028.9,3028.8,0.001]
[1763619913562,4.51526656,3028.9,3028.8,0.466]
[1763619914162,4.51526656,3028.9,3028.8,0.001]
[1763619914573,4.57646656,3028.9,3028.8,0.001]
[1763619915261,5.69439508,3028.9,3028.8,0.001]
[1763619915779,6.17829508,3028.9,3028.8,0.001]
[1763619917694,10.19402573,3028.9,3028.8,0.001]
[1763619918485,10.59952973,3028.9,3028.8,0.001]
[1763619922891,6.09989908,3028.9,3028.8,0.001]
[1763619923089,5.69439508,3028.9,3028.8,0.001]
[1763619923308,4.51526656,3028.9,3028.8,0.466]
[1763619923474,3.60827392,3028.9,3028.8,0.9333]
[1763619924470,4.51526656,3028.9,3028.8,0.9333]
[1763619925087,4.51526656,3028.9,3028.8,0.466]
[1763619925294,4.51526656,3028.9,3028.8,0.9333]
[1763619926371,1.21373796,3028.9,3028.8,0.9333]
[1763619926787,0.002,3029.3,3028.8,0.9333]
[1763619926987,3.30124011,3029.2,3029.1,0.1945]
[1763619927168,1.21378724,3029.2,3029.1,0.1945]
[1763619927373,0.3067946,3029.2,3029.1,1.1121]
[1763619927572,0.002,3029.3,3029.1,1.1121]
[1763619927774,0.002,3029.3,3029.2,0.9176]
[1763619929095,0.002,3029.3,3029.2,0.4656]
[1763619929422,0.002,3029.3,3029.2,0.9176]
[1763619930987,0.002,3029.3,3029.2,0.4656]
[1763619931378,0.002,3029.3,3029.2,0.9176]
[1763619934840,0.002,3029.3,3029.2,1.35893467]
[1763619936093,0.002,3029.3,3029.2,0.4656]
[1763619936536,0.002,3029.3,3029.2,0.9176]
[1763619937104,0.002,3029.3,3029.2,0.4656]
[1763619938304,0.002,3029.3,3029.2,0.9582]
[1763619938705,0.002,3029.3,3029.2,4.7482]
[1763619939519,0.002,3029.3,3029.2,3.79]
[1763619939923,0.1006,3029.3,3029.2,3.79]
[1763619940133,0.002,3029.3,3029.2,3.79]
[1763619940443,0.002,3029.3,3029.2,4.2642]
[1763619940817,0.002,3029.3,3029.2,4.7568]
[1763619941558,0.002,3029.3,3029.2,1.47272]
[1763619941858,0.002,3029.3,3029.2,0.9668]
[1763619951584,0.002,3029.3,3029.1,0.113]
[1763619951585,4.5674011,3029.3,3029.1,0.113]
[1763619951784,0.30653268,3029.2,3029.1,0.113]
[1763619952090,0.002,3029.3,3029.2,0.4765]
[1763619952457,0.002,3029.3,3029.2,0.9271]
[1763619953682,0.30875148,3029.3,3029.2,0.9271]
[1763619956019,3.60984414,3029.3,3029.2,0.4765]
[1763619958411,7.67231975,3029.3,3029.1,0.001]
[1763619958623,4.4955199,3029.2,3029.1,0.001]
[1763619958777,4.5697199,3029.2,3029.1,0.001]
[1763619959800,7.87092153,3029.2,3029.1,0.001]
[1763619960197,4.99004575,3029.2,3029.1,0.001]
[1763619960508,4.51494575,3029.2,3029.1,0.4775]
[1763619961076,1.21374412,3029.2,3029.1,1.114]
[1763619961318,0.30675148,3029.2,3029.1,1.114]
[1763619961497,4.20819427,3029.2,3029.1,1.114]
[1763619961709,1.21374412,3029.2,3029.1,1.114]
[1763619963395,4.51494575,3029.2,3029.1,0.6634]
[1763619963592,4.51494575,3029.2,3029.1,1.114]
[1763619963791,1.21374412,3029.2,3029.1,1.114]
[1763619964916,0.002,3029.3,3029.1,8.416952]
[1763619965230,0.002,3029.3,3029.2,1.81851378]
[1763619965909,0.002,3029.3,3029.2,0.9271]
[1763619966106,3.30309266,3029.3,3029.2,0.4765]
[1763619966283,3.61048415,3029.3,3029.2,0.4765]
[1763619966724,7.40937681,3029.3,3029.1,3.791]
[1763619966925,0.30739149,3029.2,3029.1,3.791]
[1763619967713,0.85679149,3029.2,3029.1,3.791]
[1763619967881,0.80069149,3029.2,3029.1,3.791]
[1763619968081,0.85679149,3029.2,3029.1,3.791]
[1763619968283,5.06498576,3029.2,3029.1,3.791]
[1763619968484,5.9019936,3029.2,3029.1,3.791]
[1763619968982,5.8458936,3029.2,3029.1,3.791]
[1763619970615,4.51558576,3029.2,3029.1,4.2449]
[1763619971295,4.51558576,3029.2,3029.1,4.7063]
[1763619971499,0.30739149,3029.2,3029.1,11.0397995]
[1763619971720,0.002,3029.3,3029.1,10.91602543]
[1763619971938,0.002,3029.3,3029.2,2.00700254]
[1763619972312,0.002,3029.3,3029.2,5.30820417]
[1763619972715,0.002,3029.4,3029.2,5.73914459]
[1763619973031,0.002,3029.4,3029.3,2.80787535]
[1763619974114,0.002,3029.4,3029.3,2.21296016]
[1763619974313,0.002,3029.4,3029.3,3.40118519]
[1763619975007,0.002,3029.4,3029.3,6.70227785]
[1763619975609,0.002,3029.4,3029.3,5.92112169]
[1763619975814,0.002,3029.4,3029.3,5.95413261]
[1763619976250,0.002,3029.4,3029.3,7.73258324]
[1763619976433,0.002,3029.4,3029.3,7.69957232]
[1763619977964,0.002,3029.4,3029.3,16.76098432]
[1763619978142,0.002,3029.7,3029.4,0.405504]
[1763619978318,0.002,3029.7,3029.6,2.04388815]
[1763619978713,0.002,3029.7,3029.6,0.9153]
[1763619979131,0.002,3029.7,3029.6,4.21606577]
[1763619979314,0.002,3029.7,3029.6,5.80605392]
[1763619979649,0.002,3029.7,3029.6,4.62156977]
[1763619979948,0.002,3029.7,3029.6,6.07942464]
[1763619980253,0.002,3029.7,3029.6,7.26298746]
[1763619981635,0.002,3029.7,3029.6,11.05298746]
[1763619982045,0.002,3029.7,3029.6,9.86942464]
[1763619982246,0.002,3029.7,3029.6,11.05227348]
[1763619984828,0.002,3029.7,3029.6,18.53387048]
[1763619985236,0.002,3029.7,3029.6,17.87689048]
[1763619985531,0.002,3029.7,3029.6,17.60103428]
[1763619985730,0.002,3029.7,3029.6,19.37776051]
[1763619986121,0.002,3029.7,3029.6,12.95792928]
[1763619986322,0.002,3029.7,3029.6,10.77641728]
[1763619986521,0.002,3029.7,3029.6,11.95822854]
[1763619987166,0.002,3029.7,3029.6,14.91420154]
[1763619987580,0.002,3029.7,3029.6,18.39520154]
[1763619988148,0.002,3030.4,3029.6,18.39520154]
[1763619988149,0.002,3030.4,3030.2,3.784]
[1763619988349,0.002,3030.4,3030.3,1.1414]
[1763619988549,0.002,3030.4,3030.3,1.6111]
[1763619989677,0.002,3030.4,3030.3,4.9111033]
[1763619990549,0.271,3030.4,3030.3,3.7894033]
[1763619991100,0.271,3030.4,3030.3,4.2552033]
[1763619991101,0.002,3030.4,3030.3,4.2552033]
[1763619991252,0.002,3030.4,3030.3,4.7249033]
[1763619992385,1.37909264,3031.1,3030.6,3.782]
[1763619992588,1.37909264,3031.1,3030.7,3.893]
[1763619993097,0.269,3030.8,3030.7,3.893]
[1763619993964,0.269,3030.8,3030.7,4.2823]
[1763619994489,0.4701,3031.0,3030.7,4.2823]
[1763619995789,3.30038771,3031.8,3030.9,0.4658]
[1763619995989,0.4721,3031.6,3031.0,4.2478]
[1763619996156,0.90699264,3031.5,3031.1,0.111]
[1763619996550,0.2623,3031.2,3031.1,0.111]
[1763619997091,0.7323,3031.2,3031.1,0.111]
[1763619997454,0.2623,3031.2,3031.1,0.111]
[1763619998272,4.03132348,3031.2,3031.1,0.111]
[1763619998812,0.7323,3031.2,3031.1,0.111]
[1763619999520,8.14515192,3031.2,3031.1,0.111]
[1763619999675,8.04801681,3031.2,3031.1,0.111]